fUST/lending_fUST_20251113
["ID","MTS","AMOUNT","RATE_DAILY","PERIOD"]
[393837761,1763028098249,-500.0,0.00023379,2]
[393837762,1763028098275,-500.0,0.00023379,2]
[393837763,1763028098305,-500.0,0.00023379,2]
[393837764,1763028098330,-500.0,0.00023379,2]
[393837765,1763028098356,-500.0,0.00023379,2]
[393837766,1763028098381,-500.0,0.00023379,2]
[393837767,1763028098406,-500.0,0.00023379,2]
[393837768,1763028098432,-500.0,0.00023379,2]
[393837769,1763028098459,-500.0,0.00023379,2]
[393837770,1763028098486,-500.0,0.00023379,2]
[393837771,1763028098514,-500.0,0.00023379,2]
[393837772,1763028098541,-500.0,0.00023379,2]
[393837773,1763028098568,-451.84272638,0.00023379,2]
[393837774,1763028098595,-500.0,0.00023379,2]
[393837775,1763028098620,-500.0,0.00023379,2]
[393837776,1763028098646,-500.0,0.00023379,2]
[393837777,1763028098671,-500.0,0.00023379,2]
[393837778,1763028098696,-500.0,0.00023379,2]
[393837779,1763028098721,-500.0,0.00023379,2]
[393837780,1763028098747,-500.0,0.00023379,2]
[393837781,1763028098772,-500.0,0.00023379,2]
[393837782,1763028098799,-500.0,0.00023379,2]
[393837783,1763028098825,-500.0,0.00023379,2]
[393837784,1763028098852,-500.0,0.00023379,2]
[393837785,1763028098877,-500.0,0.00023379,2]
[393837786,1763028098903,-500.0,0.00023379,2]
[393837787,1763028098929,-500.0,0.00023379,2]
[393837788,1763028098956,-500.0,0.00023379,2]
[393837789,1763028098983,-500.0,0.00023379,2]
[393837790,1763028099010,-500.0,0.00023379,2]
[393837791,1763028099037,-500.0,0.00023379,2]
[393837792,1763028099063,-500.0,0.00023379,2]
[393837793,1763028099089,-500.0,0.00023379,2]
[393837794,1763028099116,-500.0,0.00023379,2]
[393837795,1763028099142,-500.0,0.00023379,2]
[393837796,1763028099168,-188.16190729,0.00023379,2]
[393837797,1763028099387,-311.83809271,0.00023379,2]
[393837798,1763028099413,-500.0,0.00023379,2]
[393837799,1763028099439,-500.0,0.00023379,2]
[393837800,1763028099466,-500.0,0.00023379,2]
[393837801,1763028099492,-500.0,0.00023379,2]
[393837802,1763028099518,-500.0,0.00023379,2]
[393837803,1763028099544,-500.0,0.00023379,2]
[393837804,1763028099567,-500.0,0.00023379,2]
[393837805,1763028099593,-500.0,0.00023379,2]
[393837806,1763028099618,-500.0,0.00023379,2]
[393837807,1763028099642,-190.78885149,0.00023379,2]
[393837808,1763028099669,-500.0,0.00023379,2]
[393837809,1763028099696,-500.0,0.00023379,2]
[393837810,1763028099722,-500.0,0.00023379,2]
[393837811,1763028099747,-500.0,0.00023379,2]
[393837812,1763028099773,-500.0,0.00023379,2]
[393837813,1763028099798,-500.0,0.00023379,2]
[393837814,1763028099822,-500.0,0.00023379,2]
[393837815,1763028099849,-500.0,0.00023379,2]
[393837816,1763028099873,-500.0,0.00023379,2]
[393837817,1763028099897,-500.0,0.00023379,2]
[393837818,1763028099924,-500.0,0.00023379,2]
[393837819,1763028099950,-500.0,0.00023379,2]
[393837820,1763028099974,-500.0,0.00023379,2]
[393837821,1763028100000,-500.0,0.00023379,2]
[393837822,1763028100029,-500.0,0.00023379,2]
[393837823,1763028100056,-500.0,0.00023379,2]
[393837824,1763028100082,-500.0,0.00023379,2]
[393837825,1763028100109,-500.0,0.00023379,2]
[393837826,1763028100136,-500.0,0.00023379,2]
[393837827,1763028100161,-500.0,0.00023379,2]
[393837828,1763028100185,-500.0,0.00023379,2]
[393837829,1763028100352,-500.0,0.00023379,2]
[393837830,1763028100384,-500.0,0.00023379,2]
[393837831,1763028100413,-500.0,0.00023379,2]
[393837832,1763028100438,-500.0,0.00023379,2]
[393837833,1763028100462,-500.0,0.00023379,2]
[393837834,1763028100487,-500.0,0.00023379,2]
[393837835,1763028100513,-500.0,0.00023379,2]
[393837836,1763028100539,-500.0,0.00023379,2]
[393837837,1763028100562,-500.0,0.00023379,2]
[393837838,1763028100586,-500.0,0.00023379,2]
[393837839,1763028100611,-500.0,0.00023379,2]
[393837840,1763028100635,-500.0,0.00023379,2]
[393837841,1763028100661,-500.0,0.00023379,2]
[393837842,1763028100685,-500.0,0.00023379,2]
[393837843,1763028100708,-500.0,0.00023379,2]
[393837844,1763028100732,-500.0,0.00023379,2]
[393837845,1763028100756,-500.0,0.00023379,2]
[393837846,1763028100780,-500.0,0.00023379,2]
[393837847,1763028100807,-500.0,0.00023379,2]
[393837848,1763028100832,-500.0,0.00023379,2]
[393837849,1763028100856,-500.0,0.00023379,2]
[393837850,1763028100887,-500.0,0.00023379,2]
[393837851,1763028100913,-500.0,0.00023379,2]
[393837852,1763028100941,-500.0,0.00023379,2]
[393837853,1763028100967,-500.0,0.00023379,2]
[393837854,1763028100991,-500.0,0.00023379,2]
[393837855,1763028101020,-500.0,0.00023379,2]
[393837856,1763028101047,-500.0,0.00023379,2]
[393837857,1763028101074,-500.0,0.00023379,2]
[393837858,1763028101099,-500.0,0.00023379,2]
[393837859,1763028101126,-500.0,0.00023379,2]
[393837860,1763028101151,-500.0,0.00023379,2]
[393837861,1763028101178,-500.0,0.00023379,2]
[393837862,1763028101204,-500.0,0.00023379,2]
[393837863,1763028101230,-257.4483617,0.00023379,2]
[393837864,1763028101266,-500.0,0.00023379,2]
[393837865,1763028101297,-500.0,0.00023379,2]
[393837866,1763028101322,-500.0,0.00023379,2]
[393837867,1763028101353,-500.0,0.00023379,2]
[393837868,1763028101382,-500.0,0.00023379,2]
[393837869,1763028101410,-500.0,0.00023379,2]
[393837870,1763028101437,-500.0,0.00023379,2]
[393837871,1763028101464,-500.0,0.00023379,2]
[393837872,1763028101491,-500.0,0.00023379,2]
[393837873,1763028101519,-500.0,0.00023379,2]
[393837874,1763028101547,-500.0,0.00023379,2]
[393837875,1763028101577,-500.0,0.00023379,2]
[393837876,1763028101606,-500.0,0.00023379,2]
[393837877,1763028101633,-500.0,0.00023379,2]
[393837878,1763028101660,-500.0,0.00023379,2]
[393837879,1763028101689,-617.20601859,0.00023379,2]
[393837880,1763028101720,-500.0,0.00023379,2]
[393837881,1763028101747,-500.0,0.00023379,2]
[393837882,1763028101777,-500.0,0.00023379,2]
[393837883,1763028101802,-500.0,0.00023379,2]
[393837884,1763028101828,-500.0,0.00023379,2]
[393837885,1763028101854,-500.0,0.00023379,2]
[393837886,1763028101880,-500.0,0.00023379,2]
[393837887,1763028101908,-500.0,0.00023379,2]
[393837888,1763028101934,-500.0,0.00023379,2]
[393837889,1763028101960,-500.0,0.00023379,2]
[393837890,1763028101986,-500.0,0.00023379,2]
[393837891,1763028102014,-500.0,0.00023379,2]
[393837892,1763028102041,-500.0,0.00023379,2]
[393837893,1763028102067,-500.0,0.00023379,2]
[393837894,1763028102091,-500.0,0.00023379,2]
[393837895,1763028102116,-500.0,0.00023379,2]
[393837896,1763028102144,-500.0,0.00023379,2]
[393837897,1763028102168,-500.0,0.00023379,2]
[393837898,1763028102193,-122.71867551,0.00023379,2]
[393837899,1763028102671,-377.28132449,0.00023379,2]
[393837900,1763028102697,-500.0,0.00023379,2]
[393837901,1763028102724,-523.78520049,0.00023379,2]
[393837902,1763028102754,-500.0,0.00023379,2]
[393837903,1763028102780,-500.0,0.00023379,2]
[393837904,1763028102810,-500.0,0.00023379,2]
[393837905,1763028102835,-500.0,0.00023379,2]
[393837906,1763028102872,-500.0,0.00023379,2]
[393837907,1763028102899,-500.0,0.00023379,2]
[393837908,1763028102930,-440.79640192,0.00023379,2]
[393837909,1763028102958,-500.0,0.00023379,2]
[393837910,1763028102985,-500.0,0.00023379,2]
[393837911,1763028103015,-500.0,0.00023379,2]
[393837912,1763028103042,-500.0,0.00023379,2]
[393837913,1763028103069,-500.0,0.00023379,2]
[393837914,1763028103096,-500.0,0.00023379,2]
[393837915,1763028103126,-500.0,0.00023379,2]
[393837916,1763028103155,-500.0,0.00023379,2]
[393837917,1763028103181,-500.0,0.00023379,2]
[393837918,1763028103210,-500.0,0.00023379,2]
[393837919,1763028103241,-500.0,0.00023379,2]
[393837920,1763028103265,-500.0,0.00023379,2]
[393837921,1763028103294,-500.0,0.00023379,2]
[393837922,1763028103323,-500.0,0.00023379,2]
[393837923,1763028103351,-500.0,0.00023379,2]
[393837924,1763028103381,-500.0,0.00023379,2]
[393837925,1763028103407,-500.0,0.00023379,2]
[393837926,1763028103436,-500.0,0.00023379,2]
[393837927,1763028103465,-500.0,0.00023379,2]
[393837928,1763028103491,-500.0,0.00023379,2]
[393837929,1763028103519,-500.0,0.00023379,2]
[393837930,1763028103546,-500.0,0.00023379,2]
[393837931,1763028103572,-500.0,0.00023379,2]
[393837932,1763028103607,-500.0,0.00023379,2]
[393837933,1763028103637,-401.69832374,0.00023379,2]
[393837934,1763028103664,-500.0,0.00023379,2]
[393837935,1763028103695,-500.0,0.00023379,2]
[393837936,1763028103723,-500.0,0.00023379,2]
[393837937,1763028103751,-500.0,0.00023379,2]
[393837938,1763028103778,-500.0,0.00023379,2]
[393837939,1763028103804,-500.0,0.00023379,2]
[393837940,1763028103833,-500.0,0.00023379,2]
[393837941,1763028103863,-500.0,0.00023379,2]
[393837942,1763028103891,-500.0,0.00023379,2]
[393837943,1763028103920,-500.0,0.00023379,2]
[393837944,1763028103950,-500.0,0.00023379,2]
[393837945,1763028103979,-500.0,0.00023379,2]
[393837946,1763028104008,-500.0,0.00023379,2]
[393837947,1763028104040,-500.0,0.00023379,2]
[393837948,1763028104067,-500.0,0.00023379,2]
[393837949,1763028104099,-500.0,0.00023379,2]
[393837950,1763028104127,-500.0,0.00023379,2]
[393837951,1763028104154,-500.0,0.00023379,2]
[393837952,1763028104183,-500.0,0.00023379,2]
[393837953,1763028104211,-500.0,0.00023379,2]
[393837954,1763028104238,-500.0,0.00023379,2]
[393837955,1763028104264,-500.0,0.00023379,2]
[393837956,1763028104292,-500.0,0.00023379,2]
[393837957,1763028104318,-500.0,0.00023379,2]
[393837958,1763028104346,-500.0,0.00023379,2]
[393837959,1763028104379,-500.0,0.00023379,2]
[393837960,1763028104408,-500.0,0.00023379,2]
[393837961,1763028104435,-500.0,0.00023379,2]
[393837962,1763028104461,-500.0,0.00023379,2]
[393837963,1763028104487,-500.0,0.00023379,2]
[393837964,1763028104514,-500.0,0.00023379,2]
[393837965,1763028104542,-500.0,0.00023379,2]
[393837966,1763028104569,-500.0,0.00023379,2]
[393837967,1763028104596,-500.0,0.00023379,2]
[393837968,1763028104623,-500.0,0.00023379,2]
[393837969,1763028104650,-500.0,0.00023379,2]
[393837970,1763028104677,-500.0,0.00023379,2]
[393837971,1763028104705,-500.0,0.00023379,2]
[393837972,1763028104734,-500.0,0.00023379,2]
[393837973,1763028104763,-500.0,0.00023379,2]
[393837974,1763028104788,-500.0,0.00023379,2]
[393837975,1763028104813,-650.0,0.00023379,2]
[393837976,1763028104842,-500.0,0.00023379,2]
[393837977,1763028104869,-500.0,0.00023379,2]
[393837978,1763028105047,-500.0,0.00023379,2]
[393837979,1763028105074,-500.0,0.00023379,2]
[393837980,1763028105100,-500.0,0.00023379,2]
[393837981,1763028105128,-650.00000001,0.00023379,2]
[393837982,1763028105153,-500.0,0.00023379,2]
[393837983,1763028105182,-500.0,0.00023379,2]
[393837984,1763028105207,-500.0,0.00023379,2]
[393837985,1763028105231,-500.0,0.00023379,2]
[393837986,1763028105255,-500.0,0.0002338,2]
[393837987,1763028105279,-5956.43874935,0.00023381,2]
[393837988,1763028105714,-45569.62725495,0.00023381,2]
[393837989,1763028105740,-4430.37274505,0.000234,7]
[393837990,1763028181498,685.26,0.0001,2]
[393837991,1763028181870,685.26,0.000101,2]
[393837992,1763028182242,685.26,0.000102,2]
[393837993,1763028182602,685.26,0.000102,2]
[393837994,1763028183054,685.26,0.000103,2]
[393837995,1763028183514,685.26,0.000104,2]
[393837996,1763028183934,685.26,0.000105,2]
[393837997,1763028184269,685.26,0.000106,2]
[393837998,1763028185261,685.26,0.000107,2]
[393837999,1763028185600,685.26,0.000107,2]
[393838000,1763028185913,685.26,0.000108,2]
[393838001,1763028186399,685.26,0.000109,2]
[393838002,1763028186562,685.26,0.00011,2]
[393838003,1763028186858,685.26,0.000111,2]
[393838004,1763028187839,685.26,0.000111,2]
[393838005,1763028188563,685.26,0.000112,2]
[393838006,1763028188639,685.26,0.000113,2]
[393838007,1763028189015,685.26,0.000114,2]
[393838008,1763028189357,685.26,0.000115,2]
[393838009,1763028189670,685.26,0.000116,2]
[393838010,1763028189983,685.26,0.000116,2]
[393838011,1763028190348,685.26,0.000117,2]
[393838012,1763028190643,685.26,0.000118,2]
[393838013,1763028191050,685.26,0.000119,2]
[393838014,1763028191413,685.26,0.00012,2]
[393838015,1763028191783,685.26,0.00012,2]
[393838016,1763028192175,685.26,0.000121,2]
[393838017,1763028192484,685.26,0.000122,2]
[393838018,1763028192783,685.26,0.000123,2]
[393838019,1763028193073,685.26,0.000124,2]
[393838020,1763028193403,685.26,0.000124,2]
[393838021,1763028193632,685.26,0.000125,2]
[393838022,1763028194154,685.26,0.000126,2]
[393838023,1763028194293,685.26,0.000127,2]
[393838024,1763028194512,685.26,0.000128,2]
[393838025,1763028194791,685.26,0.000129,2]
[393838026,1763028195095,685.26,0.000129,2]
[393838027,1763028195392,685.26,0.00013,2]
[393838028,1763028195768,685.26,0.000131,2]
[393838029,1763028196184,685.26,0.000132,2]
[393838030,1763028196472,685.26,0.000133,2]
[393838031,1763028196767,685.26,0.000133,2]
[393838032,1763028197112,685.26,0.000134,2]
[393838033,1763028197385,685.26,0.000135,2]
[393838034,1763028197723,685.26,0.000136,2]
[393838035,1763028198031,685.26,0.000137,2]
[393838036,1763028198349,685.26,0.000138,2]
[393838037,1763028198956,685.26,0.000138,2]
[393838038,1763028199069,685.26,0.000139,2]
[393838039,1763028199513,685.26,0.00014,2]
[393838040,1763028199849,7150.59211755,0.0001,2]
[393838041,1763028199883,27112.22788245,0.0001,2]
[393838042,1763028242203,240.65,0.0001,2]
[393838043,1763028242471,240.65,0.000101,2]
[393838044,1763028242830,240.65,0.000102,2]
[393838045,1763028243144,240.65,0.000102,2]
[393838046,1763028243437,240.65,0.000103,2]
[393838047,1763028243711,240.65,0.000104,2]
[393838048,1763028243995,240.65,0.000105,2]
[393838049,1763028244268,240.65,0.000106,2]
[393838050,1763028244561,240.65,0.000107,2]
[393838051,1763028244904,240.65,0.000107,2]
[393838052,1763028245192,240.65,0.000108,2]
[393838053,1763028245514,240.65,0.000109,2]
[393838054,1763028245844,240.65,0.00011,2]
[393838055,1763028246225,240.65,0.000111,2]
[393838056,1763028248219,240.65,0.000111,2]
[393838057,1763028248501,240.65,0.000112,2]
[393838058,1763028248882,240.65,0.000113,2]
[393838059,1763028249168,240.65,0.000114,2]
[393838060,1763028249454,240.65,0.000115,2]
[393838061,1763028249742,240.65,0.000116,2]
[393838062,1763028250056,240.65,0.000116,2]
[393838063,1763028250649,240.65,0.000117,2]
[393838064,1763028250838,240.65,0.000118,2]
[393838065,1763028251168,240.65,0.000119,2]
[393838066,1763028251543,240.65,0.00012,2]
[393838067,1763028251837,240.65,0.00012,2]
[393838068,1763028252199,240.65,0.000121,2]
[393838069,1763028252669,240.65,0.000122,2]
[393838070,1763028252976,240.65,0.000123,2]
[393838071,1763028253223,300.0,0.000137,20]
[393838072,1763028253941,240.65,0.000124,2]
[393838073,1763028254271,240.65,0.000124,2]
[393838074,1763028254581,240.65,0.000125,2]
[393838075,1763028254845,240.65,0.000126,2]
[393838076,1763028255122,240.65,0.000127,2]
[393838077,1763028255441,240.65,0.000128,2]
[393838078,1763028255749,240.65,0.000129,2]
[393838079,1763028256109,240.65,0.000129,2]
[393838080,1763028256384,240.65,0.00013,2]
[393838081,1763028256747,240.65,0.000131,2]
[393838082,1763028257240,240.65,0.000132,2]
[393838083,1763028257537,240.65,0.000133,2]
[393838084,1763028257828,240.65,0.000133,2]
[393838085,1763028258122,240.65,0.000134,2]
[393838086,1763028258419,240.65,0.000135,2]
[393838087,1763028258449,150.0,0.00016771,2]
[393838088,1763028258818,240.65,0.000136,2]
[393838089,1763028259109,240.65,0.000137,2]
[393838090,1763028259531,240.65,0.000138,2]
[393838091,1763028259843,240.65,0.000138,2]
[393838092,1763028260355,240.65,0.000139,2]
[393838093,1763028260844,240.65,0.00014,2]
[393838094,1763028263030,300.0,0.000137,7]
[393838095,1763028272674,300.0,0.000137,2]
[393838096,1763028312610,262.91,0.000137,20]
[393838097,1763028320339,159.18601816,0.00016771,2]
[393838098,1763028322561,262.91,0.000137,7]
[393838099,1763028332110,225.35,0.000137,2]
[393838100,1763028377388,3125.0,0.00030137,120]
[393838102,1763028487785,5000.0,0.0001951,3]
[393838103,1763028510617,5000.0,0.0001951,3]
[393838104,1763028574861,34437.09,0.000195,3]
[393838105,1763028574887,16113.91,0.000195,3]
[393838106,1763028626802,-1084.2056637,0.00018584,2]
[393838107,1763028629985,-837.62541688,0.00018584,2]
[393838137,1763028631672,-2119.9520842,0.00018584,2]
[393838139,1763028631684,-517.76991107,0.00018584,2]
[393838144,1763028631726,-440.44692415,0.00018584,2]
[393838146,1763028631736,-150.0,0.00018678,2]
[393838148,1763028631745,-1043.05325192,0.00020643,2]
[393838150,1763028631755,-177.0,0.00020678,2]
[393838152,1763028631764,-227.2505305,0.00021726,2]
[393838154,1763028631773,-300.0,0.00022559,2]
[393838157,1763028631782,-300.0,0.00022559,2]
[393838160,1763028631791,-300.0,0.00022559,2]
[393838162,1763028631800,-300.0,0.00022559,2]
[393838165,1763028631810,-4136.6328671,0.0002256,2]
[393838167,1763028631819,-204.0,0.00022678,2]
[393838171,1763028631829,-199.13245302,0.00023281,2]
[393838174,1763028631838,-209.40437684,0.00023367,2]
[393838177,1763028631847,-500.0,0.0002338,2]
[393838179,1763028631856,-500.0,0.0002338,2]
[393838181,1763028631866,-401.91177984,0.0002338,2]
[393838184,1763028631875,-500.0,0.0002338,2]
[393838186,1763028631884,-500.0,0.0002338,2]
[393838188,1763028631893,-500.0,0.0002338,2]
[393838190,1763028631903,-500.0,0.0002338,2]
[393838193,1763028631913,-500.0,0.0002338,2]
[393838195,1763028631923,-500.0,0.0002338,2]
[393838196,1763028631932,-500.0,0.0002338,2]
[393838199,1763028631941,-200.74483617,0.0002338,2]
[393838200,1763028631950,-500.0,0.0002338,2]
[393838202,1763028631959,-158.85684932,0.0002338,2]
[393838204,1763028631968,-500.0,0.0002338,2]
[393838206,1763028631977,-500.0,0.0002338,2]
[393838208,1763028631986,-500.0,0.0002338,2]
[393838210,1763028631996,-500.0,0.0002338,2]
[393838213,1763028632008,-500.0,0.0002338,2]
[393838215,1763028632018,-500.0,0.0002338,2]
[393838217,1763028632027,-570.74562643,0.0002338,2]
[393838219,1763028632037,-500.0,0.0002338,2]
[393838221,1763028632046,-500.0,0.0002338,2]
[393838222,1763028632056,-500.0,0.0002338,2]
[393838224,1763028632066,-500.0,0.0002338,2]
[393838226,1763028632075,-500.0,0.0002338,2]
[393838228,1763028632084,-500.0,0.0002338,2]
[393838230,1763028632093,-645.18427264,0.0002338,2]
[393838232,1763028632102,-500.0,0.0002338,2]
[393838234,1763028632111,-305.16983237,0.0002338,2]
[393838236,1763028632120,-500.0,0.0002338,2]
[393838238,1763028632130,-500.0,0.0002338,2]
[393838240,1763028632139,-500.0,0.0002338,2]
[393838242,1763028632148,-36913.17067946,0.00023381,2]
[393838342,1763028637578,-281.04,0.00023381,2]
[393838343,1763028637632,-500.0,0.00021726,2]
[393838344,1763028637642,-8962.0668305,0.00023381,2]
[393838365,1763028639869,-3e-08,0.00023381,2]
[393838369,1763028642172,-532.5,0.00023381,2]
[393838370,1763028642251,-2270.87112741,0.00023381,2]
[393838380,1763028643202,-2913.47731066,0.00023147,3]
[393838381,1763028643309,-711.48248578,0.00023147,3]
[393838382,1763028643320,-1375.04020356,0.00023147,3]
[393838383,1763028643329,-2753.29300025,0.00023381,2]
[393838385,1763028645344,-400.22100341,0.00023381,2]
[393838386,1763028645531,-521.44717394,0.00023381,2]
[393838387,1763028645553,-546.01824291,0.00023381,2]
[393838389,1763028645900,-420.75388589,0.00023381,2]
[393838390,1763028645910,-500.0,0.00023381,2]
[393838391,1763028645921,-500.0,0.00023381,2]
[393838392,1763028645930,-218.5162716,0.00023381,2]
[393838393,1763028645941,-281.4837284,0.00023381,2]
[393838394,1763028645950,-2260.54725495,0.000234,7]
[393838395,1763028645959,-371.8126424,0.00023546,2]
[393838396,1763028645968,-500.0,0.00023654,2]
[393838397,1763028645978,-1043.05325192,0.00023654,2]
[393838398,1763028645987,-217.15233878,0.00023915,2]
[393838399,1763028645995,-500.0,0.00023928,2]
[393838400,1763028646005,-500.0,0.00024025,2]
[393838401,1763028646014,-199.13245301,0.00024041,2]
[393838402,1763028646023,-500.0,0.00024125,2]
[393838403,1763028646033,-500.0,0.00024202,2]
[393838404,1763028646042,-503.37989894,0.00024233,2]
[393838405,1763028646051,-392.82806806,0.00024233,2]
[393838406,1763028646061,-225.18697532,0.00024463,2]
[393838407,1763028646070,-491.63051284,0.00024476,2]
[393838408,1763028646079,-420.0,0.00024501,2]
[393838409,1763028646088,-1450.50705984,0.00024548,2]
[393838410,1763028646098,-206.69,0.00024557,2]
[393838411,1763028646108,-520.37042253,0.00024573,2]
[393838412,1763028646117,-3118.12,0.00024648,3]
[393838413,1763028646126,-1559.06,0.00024648,3]
[393838414,1763028646135,-779.53,0.00024648,3]
[393838415,1763028646144,-389.76,0.00024648,3]
[393838416,1763028646153,-194.88,0.00024648,3]
[393838417,1763028646162,-500.0,0.00024657,2]
[393838418,1763028646171,-500.0,0.00024657,2]
[393838419,1763028646180,-649.2179702,0.00024657,2]
[393838420,1763028646190,-445.26651075,0.00024657,2]
[393838421,1763028646199,-400.18833243,0.00024658,7]
[393838422,1763028646209,-155.104234,0.00024658,7]
[393838423,1763028646220,-164.288679,0.00024658,7]
[393838424,1763028646230,-151.0,0.00024658,7]
[393838425,1763028646239,-173.766386,0.00024658,7]
[393838426,1763028646249,-151.0,0.00024658,7]
[393838427,1763028646258,-130.60244754,0.00024658,7]
[393838428,1763028646269,-21.55566846,0.00024658,7]
[393838429,1763028646279,-151.0,0.00024658,7]
[393838430,1763028646288,-151.0,0.00024658,7]
[393838431,1763028646297,-158.21802,0.00024658,7]
[393838432,1763028646306,-151.0,0.00024658,7]
[393838433,1763028646316,-151.0,0.00024658,7]
[393838434,1763028646325,-151.0,0.00024658,7]
[393838435,1763028646334,-151.0,0.00024658,7]
[393838436,1763028646343,-63.92631154,0.00024658,7]
[393838442,1763028776810,-500.0,0.00021726,2]
[393838443,1763028776832,-2245.88224658,0.00021726,2]
[393838444,1763029185944,2745.86911944,0.000195,3]
[393838447,1763029351785,161.0,0.00021587,120]
[393838448,1763029353087,161.0,0.00022666,120]
[393838449,1763029354496,161.0,0.00023799,120]
[393838450,1763029355798,161.0,0.00024989,120]
[393838451,1763029357159,161.0,0.00026239,120]
[393838452,1763029358923,161.0,0.00027551,120]
[393838453,1763029438690,5000.0,0.000195,3]
[393838460,1763029592570,422.233,0.00032876,120]
[393838467,1763029662894,41223.35156335,0.00018,2]
[393838476,1763029705559,25000.0,0.00017,2]
[393838477,1763029707132,35027.90041444,0.0002,20]
[393838528,1763029831993,-160.0,0.00019878,2]
[393838530,1763029832002,-500.0,0.00019973,2]
[393838532,1763029832011,-509.26830409,0.00019973,2]
[393838534,1763029832020,-2207.60227005,0.0002,2]
[393838536,1763029832029,-755.16729179,0.00020643,2]
[393838537,1763029832038,-999.0,0.00021436,2]
[393838538,1763029832048,-161.9324311,0.00021436,2]
[393838539,1763029832057,-409.83777636,0.000215,2]
[393838540,1763029832066,-3000.0,0.000233,2]
[393838541,1763029832075,-300.0,0.00023372,2]
[393838542,1763029832084,-500.0,0.00023373,2]
[393838543,1763029832094,-500.0,0.00023379,2]
[393838544,1763029832103,-500.0,0.00023379,2]
[393838545,1763029832113,-500.0,0.0002338,2]
[393838546,1763029832122,-500.0,0.0002338,2]
[393838547,1763029832132,-500.0,0.0002338,2]
[393838548,1763029832301,-500.0,0.0002338,2]
[393838549,1763029832311,-234.24252291,0.00023385,2]
[393838550,1763029832320,-500.0,0.00023398,2]
[393838551,1763029832330,-500.0,0.00023399,2]
[393838552,1763029832339,-555.54208564,0.000234,2]
[393838554,1763029832348,-500.0,0.000234,2]
[393838556,1763029832367,-504.07790737,0.000234,2]
[393838558,1763029832377,-209.40437684,0.00023639,2]
[393838560,1763029832386,-755.16729179,0.00023654,2]
[393838562,1763029832396,-382.73810144,0.00023856,2]
[393838564,1763029832406,-505.96645197,0.00023921,2]
[393838566,1763029832415,-451.2480078,0.00023948,2]
[393838568,1763029832425,-862.008714,0.00023965,2]
[393838570,1763029832434,-7686.1047213,0.00023982,2]
[393838572,1763029832444,-2183.0553094,0.00023982,2]